Cogmind - Beta 10.2 @@@ ROGUE MODE // 2021.05.08 @ 20:00:01 Player: Tripdrake Result: Destroyed by S-10 Pest with Light Assault Rifle Performance ------------- Evolutions (1) 500 Regions Visited (3) 600 Robots Destroyed (0) 0 Value Destroyed (0) 0 Prototype IDs (2) 40 Alien Tech Used (0) 0 Bonus (200) 200 TOTAL SCORE: 1340 Bonus ------- Pacifist 200 Cogmind --------- Core Integrity 0/400 Matter 292/300 Energy 20/100 System Corruption 1% Temperature Cool (0) Movement Core (100) Ox1 Location -9/Storage Parts ------- > --- POWER (2) -------- (None) > --- PROPULSION (3) --- (None) > --- UTILITY (2) ------ (None) > --- WEAPON (2) ------- Light EM Pulse Cannon > --- INVENTORY (4) ---- (None) Peak State ------------ > --- POWER ------------ Light Ion Engine > --- PROPULSION ------- Aluminum Leg Aluminum Leg > --- UTILITY ---------- Small Storage Unit > --- WEAPON ----------- Small Laser Light Assault Rifle > --- INVENTORY -------- Light Ion Engine Light Treads [Rating: 6] Favorites ----------- Power Light Ion Engine Engine Light Ion Engine Propulsion Flight Unit Treads Light Treads Leg Aluminum Leg Wheel Compact Wheel Flight Unit Flight Unit Utility Small Storage Unit Storage Small Storage Unit Protection Core Shielding Weapon Small Laser Energy Gun Small Laser Energy Cannon Light EM Pulse Cannon Ballistic Gun Light Assault Rifle Build | -11 -10 -9 -9 ------- Run | Scr Mat Mat Sto Slots Evolved 2 | . . 2 . Power 1 | . . 1 . Propulsion 1 | . . 1 . Utility . | . . . . Weapon . | . . . . Parts Attached 17 | 9 4 1 3 Power 1 | 1 . . . Engine 1 | 1 . . . Core . | . . . . Reactor . | . . . . Propulsion 9 | 5 2 1 1 Treads 1 | 1 . . . Leg 3 | 3 . . . Wheel 1 | 1 . . . Hover . | . . . . Flight 4 | . 2 1 1 Utility 2 | 1 . . 1 Device . | . . . . Storage 1 | 1 . . . Processor . | . . . . Hackware . | . . . . Protection 1 | . . . 1 Artifact . | . . . . Weapon 5 | 2 2 . 1 Energy Gun 3 | 1 2 . . Energy Cannon 1 | . . . 1 Ballistic Gun 1 | 1 . . . Ballistic Cannon . | . . . . Launcher . | . . . . Special Weapon . | . . . . Impact Weapon . | . . . . Slashing Weapon . | . . . . Piercing Weapon . | . . . . Special Melee Weapon . | . . . . Unidentified Prototypes . | . . . . Parts Lost 7 | . . 3 4 Power 1 | . . . 1 Propulsion 4 | . . 2 2 Utility 1 | . . . 1 Weapon 1 | . . 1 . Highest Loss Streak 4 | . . 3 4 Average Slot Usage (%) 44 | . 59 51 12 Engine 9 | . 14 11 1 Leg 2 | . 6 . . Flight 18 | . 17 33 6 Storage 1 | . 4 . . Protection 1 | . . . 4 Energy Gun 8 | . 14 7 . Ballistic Gun 1 | . 4 . . Naked Turns . | . . . . Heaviest Build 9 | 9 9 4 3 Greatest Support 20 | 20 20 12 4 Greatest Overweight (x) 2 | . 2 . . Average Overweight (x) . | . . . . Largest Inventory Capacity 6 | 6 6 4 4 Average Capacity 4 | 5 4 4 4 Most Carried 6 | 4 6 1 2 Average Carried 1 | 2 1 1 . Final Capacity 6 | 6 4 4 4 Final Carried 3 | 3 2 1 . Class Distribution -------------------- 100% | Mutant Dominant Class ---------------- Mutant | -10/Materials Mutant | -9/Materials Mutant | -9/Storage Resources | -11 -10 -9 -9 ----------- Run | Scr Mat Mat Sto Matter Collected 307 | 213 94 . . Remotely . | . . . . Salvage Created . | . . . . Parts . | . . . . Haulers Intercepted . | . . . . Recyclers Shooed . | . . . . Parts Field Recycled . | . . . . Retrieved Matter . | . . . . Parts Self-Destructed . | . . . . Prevented . | . . . . Kills | -11 -10 -9 -9 ------- Run | Scr Mat Mat Sto Combat Hostiles Destroyed . | . . . . Classes Destroyed . | . . . . Best Kill Streak . | . . . . Combat Bots Only . | . . . . Max Kills in Single Turn . | . . . . Gunslinging . | . . . . Exploded . | . . . . Melee . | . . . . Uniques/NPCs Destroyed . | . . . . Combat | -11 -10 -9 -9 -------- Run | Scr Mat Mat Sto Damage Taken 682 | . 42 122 518 Core 409 | . 7 34 368 Absorbed by Shields . | . . . . Core Remaining (%) 98 | 100 97 . . Volleys Fired 2 | . . . 2 Largest 1 | . . . 1 Hottest 56 | . . . 56 Shots Fired 2 | . . . 2 Gun . | . . . . Cannon 2 | . . . 2 Launcher . | . . . . Special . | . . . . Kinetic . | . . . . Thermal . | . . . . Explosive . | . . . . Electromagnetic 2 | . . . 2 Robot Hit Streak 1 | . . . 1 Robot Miss Streak 1 | . . . 1 Penetration Max . | . . . . Secondary Targets . | . . . . Shots Hit Robots 1 | . . . 1 Core Hits 2 | . . . 2 Critical Hits . | . . . . Critical Kills . | . . . . Critical Parts Destroyed . | . . . . Melee Attacks . | . . . . Impact . | . . . . Slashing . | . . . . Piercing . | . . . . Sneak Attacks . | . . . . Combat Hostiles . | . . . . Follow-up Attacks . | . . . . Damage Inflicted 40 | . . . 40 Guns . | . . . . Cannons 19 | . . . 19 Explosions . | . . . . Melee . | . . . . Ramming 21 | . . . 21 Kinetic . | . . . . Thermal . | . . . . Explosive . | . . . . Electromagnetic 19 | . . . 19 Impact . | . . . . Slashing . | . . . . Piercing . | . . . . Highest Corruption 1 | . . . 1 Average Corruption 1 | . . . 1 Corruption Purged . | . . . . Overload Shots . | . . . . Overflow Damage . | . . . . Projectiles . | . . . . Explosions . | . . . . Melee . | . . . . Knockbacks . | . . . . Impact . | . . . . Kinetic . | . . . . Secondary . | . . . . Self-Inflicted Damage 9 | . . . 9 Shots . | . . . . Rammed 5 | . . . 5 Targets Rammed 5 | . . . 5 Kicked . | . . . . Crushed . | . . . . Highest Temperature 4 | . . 4 . Average Temperature 2 | . . 2 . Received Heat Transfer 183 | . 9 57 117 Siege Activations . | . . . . Robots Corrupted . | . . . . Combat Hostiles . | . . . . Parts Fried . | . . . . Impact Corruptions . | . . . . Robots Melted . | . . . . Combat Hostiles . | . . . . Parts Melted . | . . . . Heat Transferred . | . . . . Parts Sabotaged . | . . . . Parts Stolen . | . . . . Parts Stripped . | . . . . Power Chain Reactions . | . . . . Missiles Intercepted . | . . . . Alert | -11 -10 -9 -9 ------- Run | Scr Mat Mat Sto Peak Influence 101 | . 101 57 91 Initial 42 | . . 42 11 Average 27 | . 15 48 66 Maximum Alert Level . | . . . . Low Security (%) 100 | 100 100 100 100 Level 1 . | . . . . Level 2 . | . . . . Level 3 . | . . . . Level 4 . | . . . . Level 5 . | . . . . High Security . | . . . . Max Security . | . . . . Squads Dispatched 3 | . 1 2 . Investigation 1 | . . 1 . Extermination . | . . . . Reinforcement 2 | . 1 1 . Assault . | . . . . Garrison . | . . . . Intercept . | . . . . Construction Impeded . | . . . . Haulers Reinforced . | . . . . Stealth | -11 -10 -9 -9 --------- Run | Scr Mat Mat Sto Distress Signals 1 | . . . 1 Communications Jammed . | . . . . Distress Signals . | . . . . Times Spotted 27 | . 8 7 12 Peak Tracking Total 14 | . 7 6 14 Tactical Retreats 1 | . 1 . . Traps | -11 -10 -9 -9 ------- Run | Scr Mat Mat Sto Traps Triggered 1 | . . 1 . Indirectly . | . . . . Trap Hack Attempts . | . . . . Triggered . | . . . . Disarmed . | . . . . Reprogrammed . | . . . . Reused . | . . . . Traps Extracted . | . . . . Installed . | . . . . Triggered . | . . . . Machines | -11 -10 -9 -9 ---------- Run | Scr Mat Mat Sto Machines Disabled . | . . . . Max in Single Turn . | . . . . Machines Sabotaged . | . . . . Garrisons Compromised . | . . . . Overloaded Fab Kills . | . . . . Fab Network Shutdowns . | . . . . Hacking | -11 -10 -9 -9 --------- Run | Scr Mat Mat Sto Machines Accessed 6 | . 4 1 1 Terminals 6 | . 4 1 1 Fabricators . | . . . . Repair Stations . | . . . . Recycling Units . | . . . . Scanalyzers . | . . . . Garrison Access . | . . . . Total Hacks 9 | . 6 1 2 Successful 6 | . 5 1 . Failed 3 | . 1 . 2 Catastrophic 1 | . . . 1 Database Lockouts . | . . . . Manual . | . . . . Terminals 9 | . 6 1 2 Fabricators . | . . . . Repair Stations . | . . . . Recycling Units . | . . . . Scanalyzers . | . . . . Garrison Access . | . . . . Terminal Hacks 6 | . 5 1 . Record 5 | . 4 1 . Prototype ID Bank 1 | . 1 . . Fabricator Hacks . | . . . . Repair Station Hacks . | . . . . Recycling Unit Hacks . | . . . . Scanalyzer . | . . . . Garrison Access Hacks . | . . . . Unauthorized Hacks . | . . . . Terminals . | . . . . Fabricators . | . . . . Repair Stations . | . . . . Recycling Units . | . . . . Scanalyzers . | . . . . Garrison Access . | . . . . Data Cores Recovered . | . . . . Used . | . . . . Hacking Detections 3 | . 2 . 1 Full Trace Events . | . . . . Feedback Events . | . . . . Feedback Blocked . | . . . . Robot Schematics Acquired . | . . . . Robots Built . | . . . . Matter . | . . . . Time . | . . . . Total Robot Build Rating . | . . . . Part Schematics Acquired . | . . . . Parts Built . | . . . . Matter . | . . . . Time . | . . . . Total Part Build Rating . | . . . . Parts Repaired . | . . . . Time . | . . . . Parts Recycled . | . . . . Recycled Matter . | . . . . Retrieved Matter . | . . . . Retrieved Components . | . . . . Parts Scanalyzed . | . . . . Part Schematics Acquired . | . . . . Parts Damaged . | . . . . Bothacking | -11 -10 -9 -9 ------------ Run | Scr Mat Mat Sto Used RIF Installer . | . . . . Robots Hacked . | . . . . Non-combat . | . . . . Combat . | . . . . Robot Hacks Applied . | . . . . Relay Couplers Released . | . . . . Robots Rewired . | . . . . Allies Hacked . | . . . . Hacks Repelled . | . . . . Allies | -11 -10 -9 -9 -------- Run | Scr Mat Mat Sto Total Allies . | . . . . Largest Group . | . . . . Highest-Rated Group . | . . . . Highest-Rated Ally . | . . . . Total Orders . | . . . . Ally Attacks . | . . . . Total Damage . | . . . . Kills . | . . . . Allies Corrupted . | . . . . Allies Melted . | . . . . Intel | -11 -10 -9 -9 ------- Run | Scr Mat Mat Sto Robot Analysis Total . | . . . . Derelict Logs Recovered . | . . . . Drone Launches . | . . . . Drone Recoveries . | . . . . Exploration | -11 -10 -9 -9 ------------- Run | Scr Mat Mat Sto Turns Passed 407 | 113 140 70 84 Spaces Moved 678 | 90 270 153 165 Core 74 | 30 1 . 43 Treads 5 | 5 . . . Legs 82 | 55 27 . . Wheels . | . . . . Hover . | . . . . Flight 517 | . 242 153 122 Fastest Speed 34 | 50 37 34 40 Average Speed 49 | 98 46 35 42 Slowest Speed 160 | 160 150 40 50 Overloaded Moves . | . . . . Propulsion Burnouts . | . . . . Robots Hopped 6 | . . 5 1 Cave-ins Triggered . | . . . . Exploration Rate (%) 24 | 5 41 16 35 Regions Visited 3 Branch Regions 1 Pre-discovered Areas . | . . . . Known Exits Taken . | . . . . Unknown Exits Taken 3 | 1 1 1 . Scrap Searched . | . . . . Spaces Dug . | . . . . Terrain Destroyed . | . . . . Melee . | . . . . Projectile . | . . . . AOE . | . . . . Terrain Rammed . | . . . . Walls Destroyed . | . . . . Machines Disabled . | . . . . Actions | -11 -10 -9 -9 --------- Run | Scr Mat Mat Sto Total 746 | 117 290 163 176 Wait 15 | . . 15 . Move 663 | 89 269 142 163 Hop 6 | . . 5 1 Pick Up 19 | 13 4 . 2 Fast Attach . | . . . . Attach 17 | 9 4 1 3 Detach 8 | 2 6 . . Swap . | . . . . Drop 11 | 4 7 . . Fire 2 | . . . 2 Melee . | . . . . Ram 5 | . . . 5 Kick . | . . . . Crush . | . . . . Escape Stasis . | . . . . Rewire . | . . . . Trap . | . . . . Miscellaneous . | . . . . Route ------- -11/Scrapyard -10/Materials -9/Materials -9/Storage History --------- Turn | Location | Event 9 | -11/Scrapyard | Discovered new exit (range 16) 114 | -11/Scrapyard | Entered Materials 251 | -10/Materials | Discovered new exit (range 7) 254 | -10/Materials | Entered another Materials area 254 | -9/Materials | Evolved 2 slots: Power x1, Propulsion x1 313 | -9/Materials | Build established: Mutant 316 | -9/Materials | Discovered new exit (range 5) 324 | -9/Materials | Entered Storage 367 | -9/Storage | Lost 4 parts (1p2n1w) 387 | -9/Storage | Core integrity fell below 50% 393 | -9/Storage | Core integrity fell below 20% 408 | -9/Storage | Destroyed by S-10 Pest with Light Assault Rifle Last Messages --------------- O-16 Technician locks terminal. EXIT=FOUND R-06 Scavenger destroyed. Flight Unit destroyed. R-06 Scavenger collects Com. Wheel. LOCATION=UNKNOWN GOAL=ESCAPE Connecting with Terminal... Current location identified: Storage Lgt. Ion Engine destroyed. Connecting with Terminal... W-16 Scout sends out distress signal. Acquired Core Shielding. Flight Unit destroyed. Slammed into S-10 Pest. Destabilizing: System corrupted (+1). Slammed into Y-45 Defender. Acquired Lgt. EM Pulse Cannon. Emergency Access malfunctions. Core Shielding destroyed. Map ----- +----------------------------------------------------+ | ??????#?#+??# #??????????????????????????????????? | | ????????# ??# #??????????????????????????????????? | | ????????# ??# #??????????????????????????????????? | | ????????# #?# #??????????????????????????????????? | | ??????### ### ##############?????????????????????? | | ??????# # #####+#####???????????? | | ??????# ##??????????? | | ??????# ??????????? | | #####?# ??????????? | | """"#?# ########## ??????????? | | "T""#### ###"T"#######Y """ """??????????????? | | # # #Y """ """ ?"???????????? | | # # """ """ # """ """ """?????????? | | # # """ """ #s ???????? | | """ + + """ """ # ???????? | | """ # # # !???????? | | """ # # #s ## ???????? | | # # # #? ####????????? | | ######## ############# #? #???????????? | | ??????## ##??????????# ##+######+##???????????? | | ####### ####### ## # #?????????????????? | | + #?????????????????? | | ####### ###s# #?????????????????? | | #?????## ####/#s #?????????????????? | | ##+#### #??????#?# / / #?????????????????? | | #######????????+ @# #?????????????????? | | ###????????????# # #?????????????????? | | """ ""#????????????# # #?????????????????? | | """ T"#????????????+ # #?????????????????? | | """ ""#????????????# * ######?????????????????? | | ###????????????# ???????????????????????? | | #??????????????#####???????????????????????? | | #######??????????????????????????????????????????? | | | | | | | | | | | | | | | | | | | | | | | | | | | | | | | | | | | +----------------------------------------------------+ Best States ------------- Heat Dissipation 28 Energy Generation 10 Energy Capacity 125 Matter Stores 297 Matter Capacity 300 Sight Range 16 Terrain Scan Density 10 Core Shielding 20 Evasion (%) 63 Recoil Reduction 1 Item Schematics ----------------- None Robot Schematics ------------------ None Fabricated ------------ Nothing Alien Tech Used ----------------- None Achievements -------------- None Challenges ------------ None Game ------ Seed BlastTransportCapacitor Manual? 0 Play Time 00:22:17 Cumulative 175.1 hours Start 2021.05.08 @ 19:30:15 End 2021.05.08 @ 20:00:01 Sessions 1 Manual Loads 0 Difficulty Rogue Special Mode None Game No. 57 Rogue 55 Adventurer 2 Explorer 0 Win Type - Total 0 Types 0/0/0/0/0/0/0/0/0 Lore% 17 Gallery% 45 Achievement% 10 Wizard Run 0 Options --------- ASCII 0 Keyboard 0 Movement Arrows Keybinds 0 Fullscreen 1 Font 18/SmallcapsGlow Map View 76x50 Tactical HUD 0 Map Filters NONE Filters NONE Steam 1 RUN: 42fd4e18-5d1e-4b40-bd98-2ceba471c4f3